bitfinex/quotes_SOLUSD_20241028
["timestamp","ask_amount","ask_price","bid_price","bid_amount"]
[1730107537909,29.676664,177.03,177.0,11.02092346]
[1730107538407,25.77369,177.05,177.02,11.02092346]
[1730107538611,50.0,177.03,177.02,11.02092346]
[1730107538785,30.12549,177.03,177.02,11.02092346]
[1730107539210,30.0,177.03,177.02,11.02092346]
[1730107539508,30.0,177.03,177.02,55.1046173]
[1730107539687,5.6465,177.1,177.02,55.1046173]
[1730107540007,5.6465,177.1,177.08,11.02092346]
[1730107540198,30.12549,177.09,177.08,11.02092346]
[1730107540401,30.0,177.09,177.08,11.02092346]
[1730107540700,30.12549,177.09,177.08,11.02092346]
[1730107541007,0.12549,177.07,177.05,11.02092346]
[1730107541183,0.12549,177.07,177.06,11.02092346]
[1730107541388,0.25098,177.07,177.04,14.121]
[1730107541700,0.25098,177.07,177.05,11.02092346]
[1730107542108,0.25098,177.07,177.06,11.02092346]
[1730107542482,0.25098,177.07,177.06,17.25173442]
[1730107543007,0.25098,177.07,177.05,17.25173442]
[1730107543815,0.25098,177.07,177.03,5.6487]
[1730107543816,0.25098,177.05,177.03,17.25173442]
[1730107543989,0.25098,177.05,177.04,17.25173442]
[1730107544305,0.25098,177.05,177.01,5.6491]
[1730107544306,0.25098,177.05,177.02,17.25173442]
[1730107545009,0.25098,177.05,177.04,17.25173442]
[1730107545214,0.12549,177.05,177.04,17.25173442]
[1730107545400,20.25098,177.06,177.04,17.25173442]
[1730107545731,20.25098,177.06,177.05,17.25173442]
[1730107545890,50.25098,177.06,177.05,17.25173442]
[1730107546416,20.0,177.09,177.05,17.25173442]
[1730107546595,0.12549,177.08,177.06,17.25173442]
[1730107549310,0.12549,177.06,177.05,17.25173442]
[1730107550298,0.12549,177.07,177.05,17.25173442]
[1730107550497,0.12549,177.06,177.05,17.25173442]
[1730107552321,0.12549,177.06,177.02,5.649]
[1730107552520,0.12549,177.06,177.04,17.25173442]
[1730107552697,0.12549,177.05,177.04,17.25173442]
[1730107553819,0.12549,177.05,177.03,17.25173442]
[1730107554430,0.12549,177.05,177.04,17.25173442]
[1730107555298,30.12549,177.05,177.04,17.25173442]
[1730107555504,35.77369,177.05,177.02,17.25173442]
[1730107556636,20.25098,177.04,177.0,17.25173442]
[1730107556916,0.12549,177.01,176.99,17.25173442]
[1730107557115,0.12549,177.01,176.98,17.25173442]
[1730107558323,0.12549,177.01,176.99,17.25173442]
[1730107559016,0.12549,177.01,177.0,17.25173442]
[1730107559220,30.12549,177.01,177.0,17.25173442]
[1730107559519,30.0,177.01,177.0,17.25173442]
[1730107560023,30.12549,177.01,177.0,17.25173442]
[1730107560219,0.12549,177.01,177.0,17.25173442]
[1730107560523,0.12549,177.01,177.0,22.90143442]
[1730107565430,0.12549,177.01,177.0,17.25173442]
[1730107565729,0.12549,177.0,176.97,17.25173442]
[1730107566223,0.25098,177.0,176.96,17.25173442]
[1730107566528,20.25098,176.98,176.94,11.05638557]
[1730107567354,20.25098,176.98,176.93,19.7817]
[1730107567633,25.90148,176.98,176.94,11.05638557]
[1730107568528,25.90148,176.98,176.94,17.27500627]
[1730107569047,25.90148,176.98,176.95,17.27500627]
[1730107569525,20.12549,176.98,176.97,17.27500627]
[1730107569735,50.12549,176.98,176.97,17.27500627]
[1730107570109,30.0,176.98,176.97,17.27500627]
[1730107570330,75.6487,177.03,176.97,17.27500627]
[1730107570515,11.00283045,177.02,177.0,17.27500627]
[1730107570715,90.8443,177.05,177.01,17.27500627]
[1730107570925,11.12759989,177.04,177.01,17.27500627]
[1730107571123,0.12549,177.02,177.01,17.27500627]
[1730107571325,4.35707073,177.02,177.01,17.27500627]
[1730107571640,0.12549,177.02,177.01,17.27500627]
[1730107571848,8.58902498,177.02,177.01,17.27500627]
[1730107572131,0.12549,177.01,177.0,17.27500627]
[1730107572539,0.12549,177.01,176.99,17.27500627]
[1730107573142,0.12549,177.01,177.0,17.27500627]
[1730107574310,0.25098,177.03,177.0,17.27500627]
[1730107574512,0.25098,177.03,177.01,17.27500627]
[1730107575339,0.25098,177.03,176.99,5.6497]
[1730107575538,90.8444,177.05,177.02,17.27500627]
[1730107575539,24.027864,177.05,177.02,17.27500627]
[1730107575842,32.38440627,177.09,176.95,15.7232]
[1730107575843,90.7565,177.09,177.04,17.27500627]
[1730107576048,90.7565,177.09,177.05,17.27500627]
[1730107576344,0.12549,177.08,177.05,17.27500627]
[1730107576525,0.12549,177.08,177.04,17.27500627]
[1730107576722,0.12549,177.08,177.05,17.27500627]
[1730107577115,0.12549,177.06,177.05,17.27500627]
[1730107583343,0.12549,177.06,177.05,17.27500627]
[1730107586635,0.12549,177.04,177.03,17.27500627]
[1730107587550,0.25098,177.05,177.03,17.27500627]
[1730107587730,0.25098,177.05,177.04,17.27500627]
[1730107587923,0.37647,177.05,177.04,17.27500627]
[1730107588123,0.37647,177.05,177.03,17.27500627]
[1730107588629,0.37647,177.05,177.0,14.1242]
[1730107588630,26.02467,177.05,177.02,17.27500627]
[1730107589633,26.02467,177.05,177.03,17.27500627]
[1730107590456,26.02467,177.05,177.03,11.04523419]
[1730107592750,26.02467,177.05,177.02,11.04523419]
[1730107596658,70.0,177.08,177.04,11.04523419]
[1730107596858,20.0,177.07,177.04,11.04523419]
[1730107597056,0.12549,177.06,177.04,11.04523419]
[1730107597655,0.12549,177.06,177.05,11.04523419]
[1730107597853,0.12549,177.06,177.04,11.04523419]
[1730107598454,0.12549,177.06,177.05,11.04523419]
[1730107598667,24.027864,177.09,177.05,11.04523419]
[1730107598872,20.0,177.08,177.07,11.04523419]
[1730107599335,20.25098,177.08,177.07,11.04523419]
[1730107599958,0.12549,177.07,177.05,16.69333419]
[1730107600166,0.25098,177.07,177.03,30.81563419]
[1730107601652,0.25098,177.07,177.04,11.04523419]
[1730107602066,0.25098,177.07,177.05,11.04523419]
[1730107602575,0.25098,177.07,177.06,11.04523419]
[1730107604153,0.25098,177.07,177.05,11.04523419]
[1730107605372,0.25098,177.07,177.04,5.6484]
[1730107606165,20.0,177.09,177.03,11.04523419]
[1730107606363,94.027864,177.08,177.03,11.04523419]
[1730107606572,94.153354,177.06,177.02,11.04523419]
[1730107608045,94.153354,177.06,177.02,16.69423419]
[1730107609558,99.801154,177.06,177.02,16.69423419]
[1730107610068,0.12549,177.04,177.01,14.1234]
[1730107610264,70.25098,177.04,176.99,11.04523419]
[1730107610569,0.25098,177.02,176.98,16.69553419]
[1730107611165,0.25098,177.02,176.99,11.04523419]
[1730107611765,0.25098,177.02,176.98,30.82133419]
[1730107611962,0.25098,177.02,176.99,11.04523419]
[1730107612348,0.25098,177.02,176.98,11.04523419]
[1730107612556,0.25098,177.02,176.99,11.04523419]
[1730107613671,0.25098,177.02,176.99,16.69513419]
[1730107614867,0.25098,177.02,176.95,14.1282]
[1730107615070,0.25098,177.02,176.98,11.04523419]
[1730107616065,0.25098,177.02,176.99,5.65]
[1730107616677,11.29621419,177.02,176.99,5.65]
[1730107617173,0.12549,176.99,176.92,5.6522]
[1730107617358,11.29621419,176.99,176.94,11.04523419]
[1730107618470,11.29621419,176.99,176.95,5.6513]
[1730107619858,11.29621419,176.99,176.95,19.7795]
[1730107622391,0.25098,176.99,176.95,30.82473419]
[1730107622760,20.25098,176.99,176.95,30.82473419]
[1730107624257,0.12549,177.01,176.97,11.04523419]
[1730107624478,0.25098,177.01,176.97,11.04523419]
[1730107625489,0.25098,177.01,176.98,5.6503]
[1730107626684,44.027864,177.02,176.98,16.69553419]
[1730107627579,0.25098,177.02,176.98,30.82133419]
[1730107630083,11.29621419,177.02,176.92,0.1]
[1730107630380,11.29621419,177.02,176.97,11.04523419]
[1730107630959,11.29621419,177.02,176.96,11.04523419]
[1730107631473,11.29621419,177.02,176.91,16.5035]
[1730107631474,0.12549,176.99,176.91,16.5035]
[1730107631783,0.12549,176.98,176.94,11.04523419]
[1730107633789,0.12549,176.98,176.95,5.6513]
[1730107634788,0.12549,176.98,176.91,16.5035]
[1730107634991,0.12549,176.98,176.94,11.04523419]
[1730107635366,0.12549,176.98,176.92,5.6522]
[1730107635590,0.12549,176.98,176.94,11.04523419]
[1730107636162,0.12549,176.98,176.95,5.6513]
[1730107636572,0.12549,176.99,176.95,5.6513]
[1730107636772,30.12549,176.99,176.95,5.6513]
[1730107637001,30.12549,176.99,176.95,11.04523419]
[1730107638172,0.12549,176.99,176.95,11.04523419]
[1730107638367,0.12549,176.97,176.92,19.7828]
[1730107638575,11.29621419,176.96,176.92,19.7828]
[1730107638764,0.12549,176.94,176.92,19.7828]
[1730107638967,0.12549,176.94,176.9,11.04523419]
[1730107639192,0.12549,176.94,176.88,5.6535]
[1730107639487,0.12549,176.93,176.89,11.04523419]
[1730107639699,94.153354,176.93,176.88,19.7873]
[1730107639869,0.12549,176.91,176.88,19.7873]
[1730107642995,0.12549,176.92,176.88,11.04523419]
[1730107643198,0.25098,176.92,176.88,11.04523419]
[1730107644005,11.29621419,176.92,176.84,5.6548]
[1730107644296,11.29621419,176.92,176.88,5.6535]
[1730107645398,11.29621419,176.92,176.88,19.7873]
[1730107645592,0.25098,176.92,176.88,11.04523419]
[1730107647180,0.25098,176.92,176.89,5.6532]
[1730107647601,0.25098,176.92,176.89,16.69843419]
[1730107647997,0.25098,176.92,176.89,30.83143419]
[1730107648500,35.07309819,176.96,176.91,11.04523419]
[1730107648702,0.12549,176.96,176.92,11.04523419]
[1730107648899,30.0,176.93,176.92,11.04523419]
[1730107649108,30.12549,176.93,176.92,16.69743419]
[1730107649312,0.12549,176.93,176.92,16.69743419]
[1730107657994,0.12549,176.93,176.92,5.6522]
[1730107658192,0.12549,176.93,176.92,16.69743419]
[1730107659592,0.12549,176.93,176.92,11.04523419]
[1730107659797,0.12549,176.92,176.91,16.69753419]
[1730107660317,0.25098,176.94,176.9,16.69803419]
[1730107660492,0.25098,176.94,176.9,5.6528]
[1730107661291,11.29621419,176.94,176.9,5.6528]
[1730107665009,0.25098,176.94,176.9,11.04523419]
[1730107665196,30.25098,176.94,176.9,11.04523419]
[1730107666117,0.25098,176.92,176.89,11.04523419]
[1730107666828,0.25098,176.92,176.86,14.1354]
[1730107667113,20.25098,176.9,176.86,11.04523419]
[1730107668420,0.12549,176.88,176.87,11.04523419]
[1730107669321,0.12549,176.89,176.87,11.04523419]
[1730107670327,0.25098,176.9,176.87,11.04523419]
[1730107671723,70.0,176.95,176.89,11.04523419]
[1730107672022,70.0,176.95,176.92,11.04523419]
[1730107672226,0.12549,176.94,176.92,11.04523419]
[1730107672436,16.3082,176.96,176.92,11.04523419]
[1730107672625,16.3082,176.96,176.93,11.04523419]
[1730107672801,70.0,176.95,176.87,19.7884]
[1730107673003,0.12549,176.94,176.91,11.04523419]
[1730107673507,0.12549,176.94,176.92,11.04523419]
[1730107674432,0.25098,176.94,176.92,11.04523419]
[1730107676212,0.25098,176.94,176.93,11.04523419]
[1730107676517,0.12549,176.94,176.93,11.04523419]
[1730107680612,43.902374,176.95,176.93,11.04523419]
[1730107680817,43.902374,176.95,176.88,14.1338]
[1730107680818,20.25098,176.95,176.92,5.6521]
[1730107681026,20.0,176.96,176.94,11.04523419]
[1730107681217,30.0,176.95,176.92,19.7827]
[1730107681416,0.12549,176.94,176.92,19.7827]
[1730107682326,20.12549,176.97,176.87,21.1181]
[1730107682517,0.12549,176.95,176.87,21.1181]
[1730107682711,0.12549,176.95,176.88,0.1]
[1730107683217,0.12549,176.96,176.88,0.1]
[1730107683834,0.12549,176.97,176.88,0.1]
[1730107684142,30.12549,176.97,176.96,11.04523419]
[1730107684517,20.12549,176.99,176.96,11.04523419]
[1730107684712,20.12549,176.99,176.94,44.18093676]
[1730107684713,20.12549,176.99,176.98,11.04523419]
[1730107684918,91.6961,177.04,176.98,11.04523419]
[1730107685142,11.0070147,177.03,177.0,11.04523419]
[1730107685342,70.12549,177.02,176.99,11.04523419]
[1730107685518,0.12549,177.0,176.98,11.04523419]
[1730107686032,20.25098,177.01,176.98,11.04523419]
[1730107686233,0.12549,176.99,176.98,11.04523419]
[1730107686818,0.12549,176.99,176.97,11.04523419]
[1730107687636,0.12549,176.99,176.96,5.6508]
[1730107687938,0.12549,176.99,176.98,11.04523419]
[1730107691320,0.12549,176.99,176.97,11.04523419]
[1730107694223,0.12549,176.98,176.97,11.04523419]
[1730107694644,0.12549,176.98,176.96,25.17253419]
[1730107695837,0.12549,176.98,176.96,14.1273]
[1730107696523,0.12549,176.97,176.94,11.04523419]
[1730107698047,0.12549,176.97,176.94,16.69683419]
[1730107701447,0.12549,176.96,176.94,16.69683419]
[1730107702622,0.12549,176.96,176.94,11.04523419]
[1730107702846,0.12549,176.96,176.93,11.04523419]
[1730107704171,0.12549,176.96,176.93,16.69713419]
[1730107705339,0.12549,176.95,176.92,14.1298]
[1730107705543,0.12549,176.95,176.92,30.82723419]
[1730107706037,0.12549,176.95,176.93,11.04523419]
[1730107706833,0.12549,176.94,176.93,11.04523419]
[1730107708137,0.25098,176.95,176.92,25.17503419]
[1730107710356,30.25098,176.95,176.92,25.17503419]
[1730107711036,0.25098,176.95,176.92,25.17503419]
[1730107712559,20.25098,176.95,176.92,14.1298]
[1730107714164,0.12549,176.93,176.92,14.1298]
[1730107715242,20.25098,176.93,176.9,5.6528]
[1730107715660,31.29621419,176.93,176.88,11.04523419]
[1730107716153,20.25098,176.93,176.88,11.04523419]
[1730107716365,20.25098,176.93,176.83,19.7929]
[1730107716575,25.90298,176.93,176.88,11.04523419]
[1730107716944,36.94821419,176.93,176.88,16.69853419]
[1730107717573,0.12549,176.91,176.88,5.6533]
[1730107717753,81.29621419,176.91,176.86,11.04523419]
[1730107718064,81.29621419,176.91,176.87,5.6537]
[1730107718634,70.25098,176.91,176.87,16.69893419]
[1730107719661,20.25098,176.91,176.87,30.83353419]
[1730107719836,20.25098,176.91,176.88,11.04523419]
[1730107720242,0.12549,176.91,176.88,11.04523419]
[1730107720564,0.12549,176.9,176.88,11.04523419]
[1730107720947,30.12549,176.91,176.88,11.04523419]
[1730107720948,30.0,176.91,176.89,11.04523419]
[1730107721243,30.12549,176.91,176.9,11.04523419]
[1730107721957,0.12549,176.91,176.9,11.04523419]
[1730107722159,0.12549,176.91,176.9,16.69813419]
[1730107730165,20.0,176.96,176.9,30.83033419]
[1730107730354,20.0,176.96,176.92,11.04523419]
[1730107730554,0.12549,176.95,176.92,11.04523419]
[1730107731156,0.12549,176.95,176.92,16.69733419]
[1730107736571,0.12549,176.95,176.92,5.6521]
[1730107738060,110.84988819,176.95,176.9,25.17743419]
[1730107738262,0.12549,176.92,176.9,30.83033419]
[1730107739369,0.12549,176.92,176.89,11.04523419]
[1730107740475,0.12549,176.9,176.86,19.7895]
[1730107740655,31.17072419,176.9,176.86,19.7895]
[1730107742275,0.12549,176.89,176.83,5.6551]
[1730107742494,0.12549,176.88,176.84,11.04523419]
[1730107743184,30.12549,176.88,176.84,11.04523419]
[1730107743356,30.12549,176.88,176.85,5.6545]
[1730107743760,35.77899,176.88,176.84,16.69993419]
[1730107743966,35.77899,176.88,176.84,5.6547]
[1730107744662,0.12549,176.88,176.84,16.69993419]
[1730107744994,20.12549,176.88,176.84,16.69993419]
[1730107747460,0.12549,176.89,176.85,11.04523419]
[1730107747684,20.12549,176.89,176.85,11.04523419]
[1730107747870,0.12549,176.88,176.85,11.04523419]
[1730107748076,30.12549,176.88,176.85,11.04523419]
[1730107748585,0.12549,176.88,176.85,11.04523419]
[1730107749596,0.12549,176.88,176.85,16.69963419]
[1730107751594,0.12549,176.88,176.85,11.04523419]
[1730107753888,0.12549,176.88,176.85,16.69963419]
[1730107754497,0.12549,176.88,176.86,11.04523419]
[1730107754994,0.12549,176.88,176.87,11.04523419]
[1730107756464,0.25098,176.89,176.87,11.04523419]
[1730107756771,0.25098,176.89,176.86,5.6541]
[1730107756772,70.0,176.94,176.88,11.04523419]
[1730107756972,4.23428882,176.93,176.91,11.04523419]
[1730107757278,75.6517,176.94,176.91,11.04523419]
[1730107757493,0.12549,176.93,176.91,11.04523419]
[1730107757990,0.12549,176.93,176.92,11.04523419]
[1730107758294,20.12549,176.93,176.91,11.04523419]
[1730107758678,0.25098,176.93,176.91,11.04523419]
[1730107758886,0.12549,176.94,176.92,11.04523419]
[1730107759080,0.12549,176.94,176.93,11.04523419]
[1730107759590,30.25098,176.94,176.93,11.04523419]
[1730107760802,0.25098,176.94,176.93,11.04523419]
[1730107761776,0.25098,176.94,176.9,5.6528]
[1730107761977,30.25098,176.94,176.93,11.04523419]
[1730107762900,0.25098,176.94,176.93,11.04523419]
[1730107763598,5.90258,176.94,176.93,11.04523419]
[1730107765578,20.0,176.95,176.93,11.04523419]
[1730107765901,20.12549,176.95,176.94,11.04523419]
[1730107766087,0.12549,176.94,176.86,14.1354]
[1730107766282,0.12549,176.94,176.93,11.04523419]
[1730107769379,0.25098,176.94,176.9,19.7846]
[1730107769583,0.25098,176.94,176.93,11.04523419]
[1730107771997,0.12549,176.94,176.93,11.04523419]
[1730107772203,0.25098,176.94,176.93,11.04523419]
[1730107773208,0.25098,176.94,176.86,5.6541]
[1730107773502,0.25098,176.94,176.93,11.04523419]
[1730107775904,30.25098,176.94,176.93,11.04523419]
[1730107776704,30.25098,176.94,176.86,5.6541]
[1730107776910,20.25098,176.92,176.89,11.04523419]
[1730107778508,20.25098,176.88,176.81,5.6557]
[1730107778712,20.25098,176.88,176.86,11.04523419]
[1730107779203,20.25098,176.88,176.84,5.6546]
[1730107779402,20.25098,176.88,176.86,11.04523419]
[1730107780105,0.25098,176.86,176.82,5.6554]
[1730107780304,0.25098,176.86,176.85,11.04523419]
[1730107782685,20.0,176.88,176.85,16.69963419]
[1730107782883,0.25098,176.87,176.86,11.04523419]
[1730107783097,100.25098,176.87,176.83,19.7922]
[1730107783299,100.25098,176.87,176.84,11.04523419]
[1730107783489,70.25098,176.87,176.84,11.04523419]
[1730107783808,0.12549,176.84,176.83,11.04523419]
[1730107783991,0.25098,176.84,176.83,11.04523419]
[1730107785200,0.12549,176.86,176.83,5.6551]
[1730107785405,0.25098,176.86,176.85,11.04523419]
[1730107785606,30.25098,176.86,176.85,11.04523419]
[1730107785912,0.25098,176.86,176.85,11.04523419]
[1730107787195,0.25098,176.86,176.81,14.1394]
[1730107787399,0.25098,176.86,176.85,11.04523419]
[1730107788117,0.25098,176.86,176.81,19.7951]
[1730107788291,0.25098,176.86,176.85,11.04523419]
[1730107789212,0.12549,176.86,176.85,11.04523419]
[1730107790219,70.0,176.91,176.85,55.22617095]
[1730107790519,70.0,176.93,176.9,11.04523419]
[1730107790704,22.0011,176.95,176.85,44.18093676]
[1730107790705,100.0,176.91,176.85,44.18093676]
[1730107791403,0.12549,176.9,176.85,44.18093676]
[1730107791608,70.0,176.91,176.85,44.18093676]
[1730107791798,70.0,176.91,176.9,11.04523419]
[1730107792110,20.0,176.93,176.9,11.04523419]
[1730107792295,70.0,176.94,176.92,16.69743419]
[1730107792622,0.12549,176.93,176.92,30.82803419]
[1730107793811,70.0,176.96,176.92,30.82803419]
[1730107794002,70.0,176.96,176.95,11.04523419]
[1730107794203,100.12549,176.96,176.95,11.04523419]
[1730107794717,30.12549,176.96,176.95,11.04523419]
[1730107795013,30.0,176.96,176.95,16.69653419]
[1730107795713,30.12549,176.96,176.95,16.69653419]
[1730107796395,30.12549,176.96,176.95,5.6513]
[1730107796609,0.12549,176.96,176.95,16.69653419]
[1730107798231,70.0,177.02,176.95,30.82473419]
[1730107798518,70.0,177.02,177.01,11.04523419]
[1730107798813,70.12549,177.02,177.01,11.04523419]
[1730107799426,94.153354,177.02,177.01,11.04523419]
[1730107801103,0.25098,177.01,176.99,19.7746]
[1730107801303,0.25098,177.01,177.0,11.04523419]
[1730107801608,24.153354,177.01,177.0,11.04523419]
[1730107801806,74.153354,177.01,177.0,11.04523419]
[1730107803413,50.25098,177.01,177.0,16.69493419]
[1730107804299,20.25098,177.01,177.0,16.69493419]
[1730107805830,50.25098,177.01,177.0,16.69493419]
[1730107806006,20.25098,177.01,177.0,16.69493419]
[1730107809119,30.25098,177.01,177.0,16.69493419]
[1730107809322,94.153354,177.0,176.99,14.1247]
[1730107809525,94.153354,177.0,176.99,25.16993419]
[1730107809920,0.25098,176.99,176.93,14.1298]
[1730107810427,0.25098,176.99,176.98,11.04523419]
[1730107810624,0.37647,176.99,176.98,11.04523419]
[1730107810828,0.12549,176.96,176.93,14.1298]
[1730107811029,0.12549,176.96,176.95,11.04523419]
[1730107811229,0.12549,176.96,176.95,16.69653419]
[1730107812121,24.153354,176.96,176.95,16.69653419]
[1730107814510,54.153354,176.96,176.95,16.69653419]
[1730107815229,30.12549,176.96,176.95,16.69653419]
[1730107815430,0.12549,176.96,176.95,16.69653419]
[1730107819427,70.0,177.03,176.95,30.82473419]
[1730107819737,70.12549,177.03,177.02,11.04523419]
[1730107820045,100.12549,177.03,177.02,11.04523419]
[1730107820531,100.0,177.03,177.02,11.04523419]
[1730107820734,100.0,177.03,177.02,16.69423419]
[1730107821814,100.25098,177.03,177.02,16.69423419]
[1730107822016,30.25098,177.03,177.02,16.69423419]
[1730107824635,30.25098,177.03,176.95,14.1282]
[1730107824636,0.12549,176.99,176.95,14.1282]
[1730107824816,24.027864,176.98,176.95,25.17343419]
[1730107825015,24.027864,176.98,176.95,14.1282]
[1730107825518,24.027864,176.98,176.95,25.17343419]
[1730107825713,0.12549,176.96,176.95,25.17343419]
[1730107825919,0.12549,176.96,176.95,30.82473419]
[1730107826327,0.12549,176.96,176.95,19.7795]
[1730107826542,0.12549,176.96,176.95,30.82473419]
[1730107826842,30.12549,176.96,176.95,30.82473419]
[1730107827225,30.0,176.96,176.95,30.82473419]
[1730107827914,20.0,177.02,176.95,30.82473419]
[1730107828111,0.12549,177.01,176.99,11.04523419]
[1730107828738,0.12549,177.01,176.99,16.69513419]
[1730107829117,0.25098,177.01,176.99,16.69513419]
[1730107829435,94.027864,177.01,176.98,14.1256]
[1730107830340,94.027864,177.01,176.98,19.7759]
[1730107831236,30.12549,176.99,176.98,19.7759]
[1730107831440,24.027864,176.98,176.94,11.04523419]
[1730107832720,24.027864,176.98,176.95,11.04523419]
[1730107832943,24.027864,176.98,176.95,16.69633419]
[1730107833142,0.25098,176.96,176.91,14.1311]
[1730107833442,24.027864,176.96,176.93,11.04523419]
[1730107834150,24.027864,176.96,176.93,16.69703419]
[1730107834443,70.0,177.01,176.95,11.04523419]
[1730107834647,0.12549,176.99,176.98,11.04523419]
[1730107834939,30.25098,176.99,176.98,11.04523419]
[1730107835445,0.25098,176.99,176.97,11.04523419]
[1730107836141,0.12549,176.97,176.94,11.04523419]
[1730107837143,30.12549,176.97,176.94,11.04523419]
[1730107837336,91.4186,177.04,176.94,44.18093676]
[1730107837542,4.2296513,177.03,177.02,11.04523419]
[1730107837851,85.0824,177.04,176.94,44.18093676]
[1730107838025,0.12549,177.01,176.94,44.18093676]
[1730107838336,0.12549,177.01,176.95,5.6513]
[1730107838545,0.12549,177.01,176.99,11.04523419]
[1730107838744,0.12549,177.01,177.0,11.04523419]
[1730107839138,24.153354,177.01,177.0,11.04523419]
[1730107839332,54.153354,177.01,177.0,11.04523419]
[1730107840542,54.153354,177.01,177.0,17.26439939]
[1730107842842,58.3857501,177.01,177.0,17.26439939]
[1730107843239,64.0350501,177.01,177.0,17.26439939]
[1730107843536,94.153354,177.0,176.99,17.26439939]
[1730107843736,124.153354,177.0,176.99,17.26439939]
[1730107844142,0.12549,176.99,176.98,17.26439939]
[1730107844340,0.12549,176.99,176.94,17.26439939]
[1730107844341,0.25098,176.97,176.96,17.26439939]
[1730107844539,0.37647,176.97,176.96,17.26439939]
[1730107844847,0.37647,176.97,176.95,17.26439939]
[1730107847053,30.37647,176.97,176.95,17.26439939]
[1730107848842,30.37647,176.97,176.94,22.91569939]
[1730107850074,30.37647,176.97,176.95,17.26439939]
[1730107851552,36.02717,176.97,176.94,17.26439939]
[1730107852462,36.02717,176.97,176.93,17.26439939]
[1730107852644,24.153354,176.94,176.9,17.26439939]
[1730107853353,24.153354,176.94,176.9,22.91719939]
[1730107853662,24.153354,176.94,176.91,17.26439939]
[1730107853866,0.12549,176.92,176.91,17.26439939]
[1730107854860,30.12549,176.92,176.91,17.26439939]
[1730107856057,0.12549,176.93,176.9,22.91719939]
[1730107858556,0.12549,176.93,176.91,17.26439939]
[1730107859168,0.12549,176.93,176.9,37.04939939]
[1730107860354,0.25098,176.9,176.89,17.26439939]
[1730107860554,0.37647,176.9,176.86,17.26439939]
[1730107861080,0.37647,176.9,176.84,17.26439939]
[1730107861081,0.37647,176.88,176.84,17.26439939]
[1730107862373,30.37647,176.88,176.85,5.6545]
[1730107864664,70.37647,176.86,176.83,19.7927]
[1730107864867,70.37647,176.86,176.83,19.7929]
[1730107865063,0.37647,176.86,176.84,11.06744219]
[1730107865378,30.37647,176.86,176.84,11.06744219]
[1730107865673,30.25098,176.86,176.84,11.06744219]
[1730107865865,0.12549,176.86,176.85,11.06744219]
[1730107866855,0.12549,176.86,176.85,5.6545]
[1730107867059,0.12549,176.86,176.85,16.72194219]
[1730107867769,0.12549,176.86,176.85,11.06744219]
[1730107867971,0.25098,176.86,176.85,11.06744219]
[1730107873778,0.37647,176.86,176.85,11.06744219]
[1730107878387,0.37647,176.86,176.83,14.1378]
[1730107878584,0.37647,176.86,176.84,11.06744219]
[1730107880398,0.12549,176.86,176.85,11.06744219]
[1730107880569,0.12549,176.86,176.85,16.72194219]
[1730107880892,0.25098,176.86,176.85,16.72194219]
[1730107881392,0.12549,176.86,176.85,16.72194219]
[1730107881691,30.0,176.86,176.85,16.72194219]
[1730107882290,30.12549,176.86,176.85,16.72194219]
[1730107882585,0.12549,176.86,176.85,16.72194219]
[1730107883496,0.12549,176.86,176.85,60.99171095]
[1730107884571,0.12549,176.86,176.85,16.72194219]
[1730107886587,0.12549,176.85,176.83,14.1378]
[1730107886787,0.12549,176.85,176.84,11.06744219]
[1730107887487,0.12549,176.9,176.84,11.06744219]
[1730107887687,0.37647,176.9,176.89,11.06744219]
[1730107887892,30.37647,176.9,176.89,11.06744219]
[1730107888197,30.12549,176.9,176.89,11.06744219]
[1730107888774,0.12549,176.93,176.89,11.06744219]
[1730107888983,0.12549,176.93,176.92,11.06744219]
[1730107889181,30.25098,176.93,176.92,11.06744219]
[1730107889986,30.37647,176.93,176.92,11.06744219]
[1730107890182,0.37647,176.93,176.92,11.06744219]
[1730107890897,70.0,176.98,176.92,16.71954219]
[1730107891104,0.12549,176.97,176.96,11.06744219]
[1730107891279,30.12549,176.97,176.96,11.06744219]
[1730107891603,30.0,176.97,176.96,11.06744219]